Cogmind - Beta 9.6 @@@ ROGUE MODE // 2020.05.23 @ 04:54:27 Player: Sophie Result: Destroyed by G-47 Trooper with Particle Gun Performance ------------- Evolutions (2) 1000 Regions Visited (4) 800 Robots Destroyed (37) 185 Value Destroyed (1005) 1005 Prototype IDs (6) 120 Alien Tech Used (0) 0 Bonus (274) 274 TOTAL SCORE: 3384 Bonus ------- Follower Combat Kills 274 Cogmind --------- Core Integrity 0/550 Matter 298/300 Energy 147/160 System Corruption 0% Temperature Cool (18) Movement Core (100) Ox1 Location -8/Materials Parts ------- > --- POWER (2) -------- Light Nuclear Core > --- PROPULSION (3) --- (None) > --- UTILITY (4) ------ Salvage Targeting Computer > --- WEAPON (2) ------- (None) > --- INVENTORY (4) ---- Datajack Peak State ------------ > --- POWER ------------ Light Nuclear Core Light Nuclear Core > --- PROPULSION ------- VTOL Module VTOL Module > --- UTILITY ---------- Weight Redist. System Improved Sensor Array Advanced Targeting Computer Hacking Suite > --- WEAPON ----------- Remote Datajack Mining Laser > --- INVENTORY -------- Improved Heat Sink Sensor Array Datajack Datajack [Rating: 25] Favorites ----------- Power Light Nuclear Core Engine Ion Engine Power Core Light Nuclear Core Propulsion VTOL Module Treads Light Treads Wheel Compact Wheel Hover Unit Hover Unit Flight Unit VTOL Module Utility Targeting Computer Device Weight Redist. System Storage Large Matter Pod Processor Targeting Computer Hackware Hacking Suite Weapon Light Assault Rifle Energy Gun Small Laser Energy Cannon Advanced Beam Cannon Ballistic Gun Light Assault Rifle Special Weapon Remote Datajack Special Melee Weapon Datajack Build | -11 -10 -9 -9 -8 ------- Run | Scr Mat Mat Min Mat Slots Evolved 4 | . . 2 . 2 Power 1 | . . . . 1 Propulsion 1 | . . . . 1 Utility 2 | . . 2 . . Weapon . | . . . . . Parts Attached 83 | 8 28 27 6 14 Power 19 | 1 6 3 3 6 Engine 14 | 1 5 3 3 2 Core 5 | . 1 . . 4 Reactor . | . . . . . Propulsion 15 | 4 4 6 . 1 Treads 2 | 2 . . . . Leg . | . . . . . Wheel 2 | 2 . . . . Hover 4 | . 3 . . 1 Flight 7 | . 1 6 . . Utility 24 | 1 9 8 3 3 Device 13 | . 6 4 2 1 Storage 4 | 1 1 2 . . Processor 6 | . 2 1 1 2 Hackware 1 | . . 1 . . Protection . | . . . . . Artifact . | . . . . . Weapon 25 | 2 9 10 . 4 Energy Gun 12 | 1 6 5 . . Energy Cannon 1 | . . 1 . . Ballistic Gun 7 | 1 3 3 . . Ballistic Cannon . | . . . . . Launcher . | . . . . . Special Weapon 3 | . . . . 3 Impact Weapon . | . . . . . Slashing Weapon . | . . . . . Piercing Weapon . | . . . . . Special Melee Weapon 2 | . . 1 . 1 Unidentified Prototypes 2 | . . 2 . . Parts Lost 22 | . 3 5 . 14 Power 5 | . 1 1 . 3 Propulsion 6 | . 2 1 . 3 Utility 4 | . . . . 4 Weapon 7 | . . 3 . 4 Highest Loss Streak 9 | . 1 3 . 9 Average Slot Usage (%) 87 | . 91 91 100 63 Engine 8 | . 10 6 11 4 Core 3 | . 3 4 . 8 Wheel 4 | . 11 . . . Hover 3 | . 7 . . 1 Flight 10 | . 1 17 22 10 Device 15 | . 11 18 22 11 Storage 4 | . 4 10 . . Processor 10 | . 11 11 11 8 Hackware 3 | . . 1 11 5 Energy Gun 8 | . 14 10 . . Ballistic Gun 10 | . 14 8 11 3 Special Melee Weapon 2 | . . . 11 5 Naked Turns . | . . . . . Heaviest Build 20 | 10 20 15 12 17 Greatest Support 40 | 40 26 16 16 16 Greatest Overweight (x) 4 | . 2 2 1 4 Average Overweight (x) . | . . . . . Largest Inventory Capacity 10 | 6 10 4 4 4 Average Capacity 4 | 5 5 4 4 4 Most Carried 4 | 2 4 4 4 4 Average Carried 1 | 1 1 . 3 2 Final Capacity 6 | 6 4 4 4 4 Final Carried 4 | 2 1 3 4 1 Class Distribution -------------------- 65% | Scavenger-Mutant 34% | Mutant Dominant Class ---------------- Scavenger-Mutant | -10/Materials Scavenger-Mutant | -9/Materials Scavenger-Mutant | -9/Mines Scavenger-Mutant | -8/Materials Resources | -11 -10 -9 -9 -8 ----------- Run | Scr Mat Mat Min Mat Matter Collected 1220 | 207 613 222 65 113 Remotely . | . . . . . Salvage Created 1304 | . 716 492 . 96 Parts 92 | . 44 42 . 6 Haulers Intercepted . | . . . . . Recyclers Shooed . | . . . . . Parts Field Recycled . | . . . . . Retrieved Matter . | . . . . . Parts Self-Destructed . | . . . . . Prevented . | . . . . . Kills | -11 -10 -9 -9 -8 ------- Run | Scr Mat Mat Min Mat Combat Hostiles Destroyed 32 | . 19 12 . 1 Guns 28 | . 19 8 . 1 Cannons 4 | . . 4 . . Classes Destroyed 6 | . 4 2 . . Builder 1 | . 1 . . . Operator 1 | . . 1 . . Watcher 3 | . 1 1 . 1 Swarmer 10 | . 6 4 . . Grunt 19 | . 13 6 . . Sentry 3 | . . 2 . 1 Best Kill Streak 5 | . 4 5 . 1 Combat Bots Only 4 | . 4 4 . 1 Max Kills in Single Turn 2 | . 2 1 . 1 Gunslinging 1 | . 1 . . . Exploded . | . . . . . Melee . | . . . . . Uniques/NPCs Destroyed . | . . . . . Combat | -11 -10 -9 -9 -8 -------- Run | Scr Mat Mat Min Mat Damage Taken 2699 | . 780 783 . 1136 Core 1000 | . 126 311 . 563 Absorbed by Shields . | . . . . . Core Remaining (%) 57 | 100 49 . 22 . Volleys Fired 132 | . 74 46 . 12 Largest 2 | . 2 2 . 1 Hottest 108 | . 60 108 . 30 Shots Fired 231 | . 141 78 . 12 Gun 217 | . 141 65 . 11 Cannon 13 | . . 13 . . Launcher . | . . . . . Special 1 | . . . . 1 Kinetic 117 | . 73 33 . 11 Thermal 85 | . 40 45 . . Explosive . | . . . . . Electromagnetic 28 | . 28 . . . Robot Hit Streak 10 | . 8 9 . 10 Robot Miss Streak 7 | . 7 3 . 1 Penetration Max . | . . . . . Secondary Targets 8 | . 3 5 . . Max Gunslinging Chain 1 | . 1 1 . . Shots Hit Robots 156 | . 85 50 2 19 Core Hits 68 | . 36 27 . 5 Critical Hits 1 | . . 1 . . Critical Kills 1 | . . 1 . . Critical Parts Destroyed . | . . . . . Melee Attacks 14 | . . . 2 12 Impact . | . . . . . Slashing . | . . . . . Piercing . | . . . . . Sneak Attacks 4 | . . . 2 2 Combat Hostiles . | . . . . . Follow-up Attacks . | . . . . . Damage Inflicted 1539 | . 866 567 . 106 Guns 1405 | . 866 465 . 74 Cannons 102 | . . 102 . . Explosions . | . . . . . Melee . | . . . . . Ramming 32 | . . . . 32 Kinetic 677 | . 362 241 . 74 Thermal 593 | . 267 326 . . Explosive . | . . . . . Electromagnetic 237 | . 237 . . . Impact . | . . . . . Slashing . | . . . . . Piercing . | . . . . . Highest Corruption 2 | . 2 . . . Average Corruption 1 | . 1 . . . Corruption Purged . | . . . . . Effects 10 | . 10 . . . Message Errors 2 | . 2 . . . Energy Discharges 1 | . 1 . . . Data Loss (minor) 3 | . 3 . . . Targeting Errors 3 | . 3 . . . Weapon Failures 1 | . 1 . . . Overload Shots . | . . . . . Overflow Damage . | . . . . . Projectiles . | . . . . . Explosions . | . . . . . Melee . | . . . . . Knockbacks . | . . . . . Impact . | . . . . . Kinetic . | . . . . . Secondary . | . . . . . Self-Inflicted Damage 14 | . . . . 14 Shots . | . . . . . Rammed 13 | . . . . 13 Targets Rammed 13 | . . . . 13 Kicked . | . . . . . Crushed . | . . . . . Highest Temperature 80 | . 80 58 . 16 Average Temperature 20 | . 25 17 . 6 Received Heat Transfer 801 | . 279 225 . 297 Siege Activations . | . . . . . Robots Corrupted . | . . . . . Combat Hostiles . | . . . . . Parts Fried 1 | . 1 . . . Impact Corruptions . | . . . . . Robots Melted . | . . . . . Combat Hostiles . | . . . . . Parts Melted 3 | . 1 2 . . Heat Transferred 1285 | . 600 685 . . Parts Sabotaged . | . . . . . Parts Stolen . | . . . . . Parts Stripped . | . . . . . Power Chain Reactions . | . . . . . Missiles Intercepted . | . . . . . Alert | -11 -10 -9 -9 -8 ------- Run | Scr Mat Mat Min Mat Peak Influence 324 | . 299 324 173 227 Average Influence 138 | . 130 191 136 121 Maximum Alert Level 1 | . 1 1 . 1 Low Security (%) 77 | 100 83 43 100 83 Level 1 22 | . 16 56 . 16 Level 2 . | . . . . . Level 3 . | . . . . . Level 4 . | . . . . . Level 5 . | . . . . . High Security . | . . . . . Max Security . | . . . . . Squads Dispatched 13 | . 6 2 . 5 Investigation 6 | . 6 . . . Extermination . | . . . . . Reinforcement 7 | . . 2 . 5 Assault . | . . . . . Garrison . | . . . . . Intercept . | . . . . . Construction Impeded 1 | . . 1 . . Haulers Reinforced . | . . . . . Stealth | -11 -10 -9 -9 -8 --------- Run | Scr Mat Mat Min Mat Distress Signals 7 | . 1 3 . 3 Communications Jammed . | . . . . . Distress Signals . | . . . . . Times Spotted 108 | . 26 29 3 50 Peak Tracking Total 20 | . 4 7 2 20 Tactical Retreats 9 | . . 2 1 6 Traps | -11 -10 -9 -9 -8 ------- Run | Scr Mat Mat Min Mat Traps Triggered 2 | . 2 . . . Indirectly . | . . . . . Trap Hack Attempts . | . . . . . Triggered . | . . . . . Disarmed . | . . . . . Reprogrammed . | . . . . . Reused . | . . . . . Traps Extracted . | . . . . . Installed . | . . . . . Triggered . | . . . . . Machines | -11 -10 -9 -9 -8 ---------- Run | Scr Mat Mat Min Mat Machines Disabled 2 | . . 1 . 1 Max in Single Turn 1 | . . 1 . . Machines Sabotaged . | . . . . . Garrisons Compromised . | . . . . . Overloaded Fab Kills . | . . . . . Fab Network Shutdowns . | . . . . . Hacking | -11 -10 -9 -9 -8 --------- Run | Scr Mat Mat Min Mat Machines Accessed 14 | . 8 5 . 1 Terminals 14 | . 8 5 . 1 Fabricators . | . . . . . Repair Stations . | . . . . . Recycling Units . | . . . . . Scanalyzers . | . . . . . Garrison Access . | . . . . . Total Hacks 36 | . 23 10 . 3 Successful 13 | . 7 3 . 3 Failed 23 | . 16 7 . . Catastrophic 4 | . 2 2 . . Database Lockouts . | . . . . . Manual 1 | . 1 . . . Terminals 36 | . 23 10 . 3 Fabricators . | . . . . . Repair Stations . | . . . . . Recycling Units . | . . . . . Scanalyzers . | . . . . . Garrison Access . | . . . . . Terminal Hacks 13 | . 7 3 . 3 Record 3 | . 3 . . . Prototype ID Bank 2 | . 1 1 . . Alert Level 1 | . . . . 1 Recall Reinforcements 1 | . 1 . . . Hauler Manifests 1 | . . . . 1 Registered Components 2 | . 1 1 . . Registered Prototypes 1 | . . . . 1 Zone Layout 2 | . 1 1 . . Fabricator Hacks . | . . . . . Repair Station Hacks . | . . . . . Recycling Unit Hacks . | . . . . . Scanalyzer . | . . . . . Garrison Access Hacks . | . . . . . Unauthorized Hacks . | . . . . . Terminals . | . . . . . Fabricators . | . . . . . Repair Stations . | . . . . . Recycling Units . | . . . . . Scanalyzers . | . . . . . Garrison Access . | . . . . . Data Cores Recovered 1 | . . 1 . . Used . | . . . . . Hacking Detections 13 | . 8 4 . 1 Full Trace Events 4 | . 4 . . . Feedback Events 2 | . 2 . . . Corruption 2 | . 2 . . . Feedback Blocked . | . . . . . Robot Schematics Acquired . | . . . . . Robots Built . | . . . . . Matter . | . . . . . Time . | . . . . . Total Robot Build Rating . | . . . . . Part Schematics Acquired . | . . . . . Parts Built . | . . . . . Matter . | . . . . . Time . | . . . . . Total Part Build Rating . | . . . . . Parts Repaired . | . . . . . Time . | . . . . . Parts Recycled . | . . . . . Recycled Matter . | . . . . . Retrieved Matter . | . . . . . Retrieved Components . | . . . . . Parts Scanalyzed . | . . . . . Part Schematics Acquired . | . . . . . Parts Damaged . | . . . . . Bothacking | -11 -10 -9 -9 -8 ------------ Run | Scr Mat Mat Min Mat Used RIF Installer . | . . . . . Robots Hacked 7 | . . . 2 5 Non-combat 6 | . . . 2 4 Combat 1 | . . . . 1 Robot Hacks Applied 10 | . . . 2 8 parse_system 5 | . . . 1 4 no_distress 4 | . . . 1 3 check_alert 1 | . . . . 1 Relay Couplers Released . | . . . . . Robots Rewired . | . . . . . Allies Hacked . | . . . . . Hacks Repelled . | . . . . . Allies | -11 -10 -9 -9 -8 -------- Run | Scr Mat Mat Min Mat Total Allies 6 | . . . 6 . Largest Group 6 | . . . 6 5 Highest-Rated Group 118 | . . . 118 87 Highest-Rated Ally 31 | . . . 31 31 Total Orders . | . . . . . Ally Attacks 56 | . . . 4 52 Total Damage 825 | . . . 81 744 Kills 8 | . . . 2 6 Allies Corrupted . | . . . . . Allies Melted . | . . . . . Intel | -11 -10 -9 -9 -8 ------- Run | Scr Mat Mat Min Mat Robot Analysis Total . | . . . . . Derelict Logs Recovered 1 | . . . 1 . Drone Launches . | . . . . . Drone Recoveries . | . . . . . Exploration | -11 -10 -9 -9 -8 ------------- Run | Scr Mat Mat Min Mat Turns Passed 2595 | 111 1025 605 403 451 Spaces Moved 3002 | 93 802 642 774 691 Core 189 | 6 85 . . 98 Treads 24 | 24 . . . . Legs . | . . . . . Wheels 411 | 63 348 . . . Hover 360 | . 275 . . 85 Flight 2018 | . 94 642 774 508 Fastest Speed 37 | 50 56 37 37 37 Average Speed 63 | 105 93 64 38 51 Slowest Speed 250 | 160 150 200 117 250 Overloaded Moves . | . . . . . Propulsion Burnouts . | . . . . . Robots Hopped 24 | . . 4 9 11 Cave-ins Triggered . | . . . . . Exploration Rate (%) 61 | 4 99 53 99 54 Regions Visited 4 Branch Regions 1 Pre-discovered Areas . | . . . . . Known Exits Taken . | . . . . . Unknown Exits Taken 4 | 1 1 1 1 . Scrap Searched 3 | . . . 3 . Spaces Dug . | . . . . . Terrain Destroyed . | . . . . . Melee . | . . . . . Projectile . | . . . . . AOE . | . . . . . Actions | -11 -10 -9 -9 -8 --------- Run | Scr Mat Mat Min Mat Total 3422 | 102 947 752 869 752 Wait 132 | . 9 20 91 12 Move 2953 | 92 801 633 755 672 Hop 21 | . . 4 9 8 Pick Up 8 | . 3 4 1 . Fast Attach 40 | 8 8 12 3 9 Attach 4 | . . 3 . 1 Detach 12 | 2 5 4 . 1 Swap 39 | . 20 12 3 4 Drop 54 | . 27 14 5 8 Fire 132 | . 74 46 . 12 Melee 14 | . . . 2 12 Ram 13 | . . . . 13 Kick . | . . . . . Crush . | . . . . . Escape Stasis . | . . . . . Rewire . | . . . . . Trap . | . . . . . Miscellaneous . | . . . . . Route ------- -11/Scrapyard -10/Materials (discovered 4 exits: *Mat x3 / [*Min]) -9/Materials (discovered 2 exits: *Mat / [*Min]) -9/Mines (discovered 2 exits: *Mat x2) -8/Materials History --------- Turn | Location | Event 20 | -11/Scrapyard | Discovered new exit (range 14) 112 | -11/Scrapyard | Entered Materials 148 | -10/Materials | Discovered new exit (range 6) 180 | -10/Materials | Discovered new exit (range 7) 307 | -10/Materials | Build established: Mutant 351 | -10/Materials | Discovered new exit (range 5) 838 | -10/Materials | Build established: Scavenger-Mutant 846 | -10/Materials | Discovered new exit (range 4) 870 | -10/Materials | Core integrity fell below 50% 1137 | -10/Materials | Entered another Materials area 1137 | -9/Materials | Evolved 2 slots: Utility x2 1314 | -9/Materials | Lost 3 parts (1n2w) 1451 | -9/Materials | Discovered new exit (range 3) 1531 | -9/Materials | Core integrity fell below 50% 1625 | -9/Materials | Discovered new exit (range 12) 1742 | -9/Materials | Entered Mines 1748 | -9/Mines | Received a Mining Laser from a helpful Derelict 1798 | -9/Mines | Discovered new exit (range 7) 1814 | -9/Mines | Discovered new exit (range 10) 1833 | -9/Mines | Assisted by bots powering up and referring to "LRC-V3" 1896 | -9/Mines | Found a hidden stash of uninstalled traps 1953 | -9/Mines | Joined a pair of Derelicts in attacking an 0b10 outpost 2145 | -9/Mines | Entered Materials 2145 | -8/Materials | Accompanied by 5 allies 2145 | -8/Materials | Evolved 2 slots: Power x1, Propulsion x1 2150 | -8/Materials | Led the pair of lost Derelicts to an unsafe place 2486 | -8/Materials | Lost 9 parts (1p2n4u2w) 2568 | -8/Materials | Core integrity fell below 50% 2583 | -8/Materials | Core integrity fell below 20% 2596 | -8/Materials | Destroyed by G-47 Trooper with Particle Gun Last Messages --------------- Slammed into W-25 Informer. Acquired Imp. Hover Unit. Acquired 1 matter. Acquired 9 matter. Acquired Remote Datajack. Lgt. Nuclear Core destroyed. W-25 Informer sends out distress signal. Slammed into A-02 Transporter. Acquired Lgt. Deuterium Engine. Imp. Hover Unit destroyed. Slammed into S-10 Pest. S-10 Pest destroyed. Remote Datajack destroyed. Lgt. Deuterium Engine destroyed. K-01 Serf cleans the Atomic Centrifuge. Acquired Lgt. Nuclear Core. K-01 Serf cleans the Atomic Centrifuge. Slammed into S-10 Pest. K-01 Serf cleans the Atomic Centrifuge. Slammed into S-10 Pest. Map ----- +----------------------------------------------------+ | ????????????????????????????# # | | ??????????????? ????????????# # | | ??????????????? ?????##?????# # | | ??????????????? ??#### ###### # | | ??????????????# #? ## # | | ?????????????? # """ """ ####+### | | ?????????????? = # """ """ # | | ?????????????? # """ """ / | | ??????????????# ## # | | ??????????????# ## [ ### | | ??????????????# ## #?# | | ??????????????# ## =% #?# "" | | ??????????????# #########/##?# "" | | ?????????###### ######### #### "" | | ?????????# % | | ?????????# | | ?????????# Y | | ?????????# kg###+######+######+### | | ?????????# #! ?# #??? ?# | | ?????????# # ## #???? #? | | ?????????# gk# ## """#?????#? | | ??######## # "" ##! """#??????? | | ??# """ # # """ ## """#??????? | | ??# """ss#ss # S" ## #??????? | | ??# """ /s #! #########??????? | | ??# #@ #######??????????????? | | ??# # #????????????????????? | | ??# # #????????????????????? | | ??######## #????????????????????? | | ?????????# #????????????????????? | | ?????????# #????????????????????? | | ?????????# #????????????????????? | | ?????????# #????????????????????? | | ?????????# #????????????????????? | | ?????????# #????????????????????? | | ?????????# #????????????????????? | | ?????????# #????????????????????? | | ?????????# #????????????????????? | | ?????????? +????????????????????? | | ?????????? #????????????????????? | | ?????????? ?????????????????????? | | ??????????????????????????????????? | | ??????????????????????????????????? | | ??????????????????????????????????? | | ??????????????????????????????????? | | ??????????????????????????????????? | | ??????????????????????????????????? | | ??????????????????????????????????? | | ??????????????????????????????????? | | ??????????????????????????????????? | +----------------------------------------------------+ Best States ------------- Heat Dissipation 42 Energy Generation 27 Energy Capacity 310 Matter Stores 450 Matter Capacity 450 Sight Range 16 Robot Scan Range 13 Terrain Scan Density 10 Additional Mass Support 6 Evasion (%) 62 Targeting Accuracy 8 Recoil Reduction 2 Salvage Targeting 1 Offensive Hacking 10 Item Schematics ----------------- None Robot Schematics ------------------ None Fabricated ------------ Nothing Alien Tech Used ----------------- None Achievements -------------- None Challenges ------------ None Game ------ Seed FieldSpectralImmobilizer Manual? 0 Play Time 00:59:22 Cumulative 32.1 hours Start 2020.05.23 @ 03:43:08 End 2020.05.23 @ 04:54:27 Sessions 1 Manual Loads 0 Difficulty Rogue Special Mode None Game No. 16 Rogue 9 Adventurer 0 Explorer 7 Win Type - Total 0 Types 0/0/0/0/0/0/0 Lore% 31 Gallery% 37 Achievement% 28 Wizard Run 0 Options --------- ASCII 0 Keyboard 1 Movement Numpad Keybinds 0 Fullscreen 0 Font 16/Cog Map View 76x50 Tactical HUD 0 Map Filters NONE Filters NONE Steam 1 RUN: c32ce3e1-1831-4256-a4cc-4880ed8e9014